Cogmind - Beta 13 *** ADVENTURER MODE // 2024.06.24 @ 21:43:17 Player: toon Result: Destroyed by G-34 Mercenary with Small Laser Performance ------------- Evolutions (1) 500 Regions Visited (2) 400 Robots Destroyed (15) 75 Value Destroyed (264) 264 Prototype IDs (0) 0 Alien Tech Used (0) 0 Bonus (0) 0 TOTAL SCORE: 1239 Bonus ------- None Cogmind --------- Core Integrity 0/400 Matter 262/300 Energy 77/250 System Corruption 1% Temperature Cool (30) Movement Walking (260) Ox2 Location -9/Materials Parts ------- > --- POWER (1) -------- Ion Engine > --- PROPULSION (2) --- Aluminum Leg > --- UTILITY (4) ------ Large Storage Unit Terrain Scan Processor > --- WEAPON (2) ------- Small Laser > --- INVENTORY (15) --- Light Ion Engine High-powered Tractor Beam Peak State ------------ > --- POWER ------------ Light Ion Engine > --- PROPULSION ------- Wheel Wheel > --- UTILITY ---------- Large Storage Unit Improved Terrain Scanner Terrain Scan Processor > --- WEAPON ----------- Medium Laser Light Assault Rifle > --- INVENTORY -------- Light Ion Engine Aluminum Leg Small Matter Pod Tractor Beam Small Laser [Rating: 11] Favorites ----------- Power Light Ion Engine Engine Light Ion Engine Propulsion Wheel Leg Aluminum Leg Wheel Wheel Utility Improved Terrain Scanner Device Improved Terrain Scanner Storage Large Storage Unit Processor Terrain Scan Processor Weapon Light Assault Rifle Energy Gun Medium Laser Ballistic Gun Light Assault Rifle Build | -11 -10 -9 ------- Run | Yrd Mat Mat Slots Evolved 2 | . . 2 Power . | . . . Propulsion . | . . . Utility 2 | . . 2 Weapon . | . . . Parts Attached 14 | 6 3 5 Power 3 | 1 . 2 Engine 3 | 1 . 2 Core . | . . . Reactor . | . . . Propulsion 4 | 1 2 1 Treads . | . . . Leg 1 | . . 1 Wheel 3 | 1 2 . Hover . | . . . Flight . | . . . Utility 4 | 2 1 1 Device 1 | 1 . . Storage 2 | 1 1 . Processor 1 | . . 1 Hackware . | . . . Protection . | . . . Artifact . | . . . Weapon 3 | 2 . 1 Energy Gun 2 | 1 . 1 Energy Cannon . | . . . Ballistic Gun 1 | 1 . . Ballistic Cannon . | . . . Launcher . | . . . Special Weapon . | . . . Impact Weapon . | . . . Slashing Weapon . | . . . Piercing Weapon . | . . . Special Melee Weapon . | . . . Unidentified Prototypes . | . . . Parts Lost 7 | . . 7 Power 2 | . . 2 Propulsion 2 | . . 2 Utility 1 | . . 1 Weapon 2 | . . 2 Highest Loss Streak 7 | . . 7 To Critical Strikes . | . . . Average Slot Usage (%) 85 | . 100 74 Engine 10 | . 14 7 Leg 1 | . . 3 Wheel 19 | . 28 12 Device 12 | . 14 11 Storage 12 | . 14 11 Processor 6 | . . 11 Energy Gun 11 | . 14 8 Ballistic Gun 11 | . 14 10 Naked Turns . | . . . Heaviest Build 27 | 8 27 27 Greatest Support 20 | 10 20 20 Greatest Overweight (x) 7 | . 1 7 Average Overweight (x) . | . . 1 Largest Inventory Capacity 15 | 5 15 15 Average Capacity 10 | 5 8 15 Most Carried 6 | 5 6 6 Average Carried 4 | 2 4 4 Final Capacity 15 | 5 15 15 Final Carried 6 | 4 6 2 Class Distribution -------------------- 100% | Mutant Dominant Class ---------------- Mutant | -10/Materials Mutant | -9/Materials Resources | -11 -10 -9 ----------- Run | Yrd Mat Mat Matter Collected 333 | 278 18 37 Remotely . | . . . Salvage Created 514 | 124 113 277 Parts 34 | 12 8 14 Haulers Intercepted 1 | . . 1 Recyclers Shooed 1 | . . 1 Parts Field Recycled . | . . . Retrieved Matter . | . . . Parts Self-Destructed . | . . . Prevented . | . . . Kills | -11 -10 -9 ------- Run | Yrd Mat Mat Combat Hostiles Destroyed 7 | 1 2 4 Guns 7 | 1 2 4 Classes Destroyed 7 | 3 2 2 Worker 2 | 1 1 . Builder 2 | . 1 1 Tunneler 3 | 3 . . Hauler 1 | . . 1 Swarmer 1 | . 1 . Grunt 5 | 1 1 3 Brawler 1 | . . 1 Best Kill Streak 4 | 4 2 3 Combat Bots Only 2 | 1 2 2 Max Kills in Single Turn 2 | 1 1 2 Gunslinging 1 | . . 1 Exploded . | . . . Melee . | . . . Uniques/NPCs Destroyed . | . . . Combat | -11 -10 -9 -------- Run | Yrd Mat Mat Hostile Shots Fired 133 | 6 11 116 Missed 36 | 1 8 27 Damage Taken 997 | 41 40 916 Core 432 | 25 . 407 Absorbed by Shields . | . . . Ignored by Resistances 302 | 13 12 277 Core Remaining (%) 90 | 90 90 . Volleys Fired 54 | 10 6 38 Largest 2 | 2 2 2 Hottest 70 | 70 70 70 Shots Fired 90 | 20 12 58 Gun 90 | 20 12 58 Cannon . | . . . Launcher . | . . . Special . | . . . Kinetic 49 | 10 6 33 Thermal 41 | 10 6 25 Explosive . | . . . Electromagnetic . | . . . Robot Hit Streak 26 | 12 13 26 Robot Miss Streak 2 | 1 1 2 Penetration Max . | . . . Secondary Targets 2 | . . 2 Max Gunslinging Chain 1 | . . 1 Shots Hit Robots 72 | 16 8 48 Core Hits 29 | 7 5 17 Critical Kills . | . . . Critical Parts Destroyed . | . . . Critical Strikes 2 | . 1 1 Burn 2 | . 1 1 Melee Attacks . | . . . Impact . | . . . Slashing . | . . . Piercing . | . . . Sneak Attacks . | . . . Combat Hostiles . | . . . Follow-up Attacks . | . . . Damage Inflicted 735 | 176 88 471 Guns 735 | 176 88 471 Cannons . | . . . Explosions . | . . . Melee . | . . . Ramming . | . . . Kinetic 318 | 61 26 231 Thermal 417 | 115 62 240 Explosive . | . . . Electromagnetic . | . . . Impact . | . . . Slashing . | . . . Piercing . | . . . Highest Corruption 1 | . . 1 Average Corruption 1 | . . 1 Corruption Purged . | . . . Corruption Blocked . | . . . Overload Shots . | . . . Overflow Damage . | . . . Projectiles . | . . . Explosions . | . . . Melee . | . . . Knockbacks . | . . . Impact . | . . . Kinetic . | . . . Secondary . | . . . Self-Inflicted Damage . | . . . Shots . | . . . Rammed . | . . . Targets Rammed . | . . . Kicked . | . . . Crushed . | . . . Highest Temperature 195 | 140 66 195 Average Temperature 58 | 65 26 64 Received Heat Transfer 531 | 30 12 489 Siege Activations . | . . . Robots Corrupted . | . . . Combat Hostiles . | . . . Parts Fried . | . . . Impact Corruptions . | . . . Robots Melted . | . . . Combat Hostiles . | . . . Parts Melted 4 | . 3 1 Heat Transferred 1346 | 333 259 754 Parts Sabotaged . | . . . Parts Stolen . | . . . Parts Stripped . | . . . Power Chain Reactions . | . . . Alert | -11 -10 -9 ------- Run | Yrd Mat Mat Peak Influence 121 | 40 97 121 Initial 34 | . 22 34 Average 54 | 8 62 80 Maximum Alert Level . | . . . Low Security (%) 100 | 100 100 100 Level 1 . | . . . Level 2 . | . . . Level 3 . | . . . Level 4 . | . . . Level 5 . | . . . High Security . | . . . Max Security . | . . . Squads Dispatched 1 | . 1 . Investigation 1 | . 1 . Extermination . | . . . Reinforcement . | . . . Assault . | . . . Garrison . | . . . Intercept . | . . . Searches Triggered . | . . . Construction Impeded . | . . . Haulers Reinforced . | . . . Active Scanning Responses . | . . . Cargo Convoy Interrupts . | . . . Stealth | -11 -10 -9 --------- Run | Yrd Mat Mat Distress Signals 1 | . . 1 Communications Jammed . | . . . Distress Signals . | . . . Times Spotted 18 | 1 5 12 Peak Tracking Total 7 | 1 6 7 Tactical Retreats 1 | . . 1 Traps | -11 -10 -9 ------- Run | Yrd Mat Mat Traps Triggered 1 | . 1 . Indirectly . | . . . Trap Hack Attempts . | . . . Triggered . | . . . Disarmed . | . . . Reprogrammed . | . . . Reused . | . . . Traps Extracted . | . . . Installed . | . . . Triggered . | . . . Machines | -11 -10 -9 ---------- Run | Yrd Mat Mat Machines Disabled . | . . . Max in Single Turn . | . . . Machines Repaired . | . . . Machines Dismantled . | . . . Machines Sabotaged . | . . . Overloaded Fab Kills . | . . . Hacking | -11 -10 -9 --------- Run | Yrd Mat Mat Machines Accessed 1 | . 1 . Terminals 1 | . 1 . Fabricators . | . . . Repair Stations . | . . . Recycling Units . | . . . Scanalyzers . | . . . Garrison Access . | . . . Total Hacks 4 | . 4 . Successful 1 | . 1 . Failed 3 | . 3 . Catastrophic 2 | . 2 . Database Lockouts . | . . . Manual 4 | . 4 . Terminals 4 | . 4 . Fabricators . | . . . Repair Stations . | . . . Recycling Units . | . . . Scanalyzers . | . . . Garrison Access . | . . . Terminal Hacks 1 | . 1 . Branch Access Points 1 | . 1 . Fabricator Hacks . | . . . Repair Station Hacks . | . . . Recycling Unit Hacks . | . . . Scanalyzer . | . . . Garrison Access Hacks . | . . . Unauthorized Hacks . | . . . Terminals . | . . . Fabricators . | . . . Repair Stations . | . . . Recycling Units . | . . . Scanalyzers . | . . . Garrison Access . | . . . Data Cores Recovered . | . . . Used . | . . . Hacking Detections 1 | . 1 . Full Trace Events 1 | . 1 . Feedback Events . | . . . Feedback Blocked . | . . . Robot Schematics Acquired . | . . . Robots Built . | . . . Authchips . | . . . Time . | . . . Total Robot Build Rating . | . . . Part Schematics Acquired . | . . . Parts Built . | . . . Authchips . | . . . Time . | . . . Total Part Build Rating . | . . . Parts Repaired . | . . . Time . | . . . Parts Recycled . | . . . Recycled Matter . | . . . Retrieved Matter . | . . . Retrieved Components . | . . . Parts Scanalyzed . | . . . Part Schematics Acquired . | . . . Parts Damaged . | . . . Bothacking | -11 -10 -9 ------------ Run | Yrd Mat Mat Used RIF Installer . | . . . Robots Hacked . | . . . Non-combat . | . . . Combat . | . . . Robot Hacks Applied . | . . . Relay Couplers Released . | . . . Fabnet Peak Effective % . | . . . Robots Rewired . | . . . Allies Hacked . | . . . Hacks Repelled . | . . . Allies | -11 -10 -9 -------- Run | Yrd Mat Mat Total Allies . | . . . Largest Group . | . . . Highest-Rated Group . | . . . Highest-Rated Ally . | . . . Total Orders . | . . . Ally Attacks . | . . . Total Damage . | . . . Kills . | . . . Allies Corrupted . | . . . Allies Melted . | . . . Intel | -11 -10 -9 ------- Run | Yrd Mat Mat Robot Analysis Total . | . . . Derelict Logs Recovered . | . . . Drone Launches . | . . . Drone Recoveries . | . . . Exploration | -11 -10 -9 ------------- Run | Yrd Mat Mat Turns Passed 353 | 100 110 143 Spaces Moved 215 | 76 100 39 Core 17 | 15 . 2 Treads . | . . . Legs 2 | . . 2 Wheels 196 | 61 100 35 Hover . | . . . Flight . | . . . Fastest Speed 50 | 50 80 95 Average Speed 87 | 74 84 119 Slowest Speed 400 | 80 95 400 Overloaded Moves . | . . . Propulsion Burnouts . | . . . Robots Hopped . | . . . Cave-ins Triggered . | . . . Exploration Rate (%) 13 | 6 26 7 Regions Visited 2 Branch Regions . Pre-discovered Areas . | . . . Known Exits Taken . | . . . Unknown Exits Taken 2 | 1 1 . Scrap Searched . | . . . Spaces Dug . | . . . Terrain Destroyed . | . . . Melee . | . . . Projectile . | . . . AOE . | . . . Terrain Rammed . | . . . Walls Destroyed . | . . . Machines Disabled . | . . . Actions | -11 -10 -9 --------- Run | Yrd Mat Mat Total 301 | 101 113 87 Wait . | . . . Move 213 | 75 99 39 Hop . | . . . Pick Up 17 | 10 4 3 Fast Attach . | . . . Attach 12 | 6 1 5 Detach . | . . . Swap 2 | . 2 . Drop 3 | . 1 2 Fire 54 | 10 6 38 Melee . | . . . Ram . | . . . Kick . | . . . Crush . | . . . Escape Stasis . | . . . Rewire . | . . . Trap . | . . . Miscellaneous . | . . . Route ------- -11/Scrapyard -10/Materials (discovered 3 exits: [*Mat] / Min x2) -9/Materials History --------- Turn | Location | Event 2 | -11/Scrapyard | Met Revision 17 66 | -11/Scrapyard | Discovered new exit (range 8) 101 | -11/Scrapyard | Entered Materials 111 | -10/Materials | Identified exit to Mines 194 | -10/Materials | Discovered new exit (range 16) 211 | -10/Materials | Entered another Materials area 211 | -9/Materials | Evolved 2 slots: Utility x2 300 | -9/Materials | Build established: Mutant 336 | -9/Materials | Core integrity fell below 50% 351 | -9/Materials | Core integrity fell below 20% 354 | -9/Materials | Destroyed by G-34 Mercenary with Small Laser Last Messages --------------- recycling unit. R-06 Scavenger inserts Aluminum Leg into recycling unit. Ion Engine destroyed. R-06 Scavenger collects Lgt. Treads. Lgt. Assault Rifle destroyed. R-06 Scavenger collects Hammer. R-06 Scavenger inserts Lgt. Treads into recycling unit. R-06 Scavenger inserts Tractor Beam into recycling unit. Recycling unit begins recycling process. R-06 Scavenger collects Welding Torch. Imp. Terrain Scanner destroyed. R-06 Scavenger inserts Lgt. Ion Engine into recycling unit. R-06 Scavenger collects Aluminum Leg. R-06 Scavenger inserts Heat Sink into recycling unit. Recycling unit begins recycling process. Map ----- +----------------------------------------------------+ | | | | | | | | | | | | | | | | | | | ?????????????????????????????????????????????????? | | ??????????????????#??????#???????????????????????? | | #??????????????????#?????#???????????????????????? | | ????#?????????#?#?????????#?#????????????????????? | | ???#?????????#??###??????#?## ?????????????????? | | ???????#?#???????#?###??####??? ? ???????????????? | | ????????#??#???#??#??####?### ?? ????????????????? | | ??##???#??#??#?###?#?#?####?? ? ???? ????????????? | | ????#????????#??#?###?##?#??? ? ?? ???????????? | | ##????????####?#?####?####??# ?? ? ???????????? | | #??#?##?#????#?#### ######### ? ? ? +??????????? | | ?#???????##???##### # ?? ?????? ????????? | | ##########?#?###### "" ###+###?### ?????????? | | #?# ? g """Y # ? ? ???????? | | ##?? ? # """ #? ??? ???????? | | #?# # """ ""# ??????????? | | #?# "?"??# """ @Y"# ? #??????? | | #?# "?""?# g r""# """ ???#???????? | | ### ??" ?# g % # """ ??? ??????? | | ! ########+########Y##= """ ???????? | | + * %%a%%*% ??????? | | ############### !% =!* ??????? | | ???##????###### ##########+### """ #????????? | | #?####??#? ? ?# ## ? ?? ### """ ? ?????????? | | ##?? ? ? ? ## """?"?" #?? ?"" ? ??#???????? | | ???? ?#?##?? #####?????"?"" ##? ?? ? ???????????? | | ??????????? ######? "?"""?" #?????????? ?????????? | | ????????#?#??#####? ?""?""" #?# ?"??? ??#???????? | | #?????##?#??#?#?### """"""" #?# ??"?????????????? | | ??????#??#?+?#?#?## ? ?? ??#??"???????????????? | | ??#??# ? ? ???#?##? ? ? ###??? ?? ?????????? | | #??#????? ?T"???#?##?###?######? ????? ??????????? | | ??#??#?????????##???#?????##??? "???????????????? | | ???????????????????######?#?? ???? ????????????? | | ????????????????#???#?????#?? ???"???????????????? | | ??????????? ???#???????#???#? ? ?????????????????? | | ?????????????????#???????#???????????????????????? | | ?????????????????????????????????????????????????? | | ?????????????????????????????????????????????????? | | ?????????????????????????????????????????????????? | | ?????????????????????????????????????????????????? | +----------------------------------------------------+ Best States ------------- Heat Dissipation 28 Energy Generation 10 Energy Capacity 250 Matter Stores 326 Matter Capacity 350 Sight Range 16 Terrain Scan Range 16 Terrain Scan Density 85 Resistance: KI 20 Resistance: TH 20 Resistance: EX 20 Resistance: EM 20 Resistance: I 20 Resistance: S 20 Resistance: P 20 Evasion (%) 50 Offensive Hacking 10 Item Schematics ----------------- None Robot Schematics ------------------ None Fabricated ------------ Nothing Alien Tech Used ----------------- None Achievements -------------- Loot Pinata One Hack Too Far Challenges ------------ None Game ------ Seed IonGrapheneCleaver Manual? 0 Play Time 00:11:00 Cumulative 0.6 hours Start 2024.06.24 @ 21:34:53 End 2024.06.24 @ 21:43:17 Sessions 1 Manual Loads 0 Difficulty Adventurer Special Mode None Game No. 2 Rogue 0 Adventurer 2 Explorer 0 Win Type - Total 0 Types 0/0/0/0/0/0/0/0/0 Lore% 0 Gallery% 1 Achievement% 2 Wizard Run 0 Options --------- Layout 1 ASCII 0 Keyboard 0 Movement Mouse Keybinds 0 Fullscreen 0 Font 20/Terminus Map View 50x35 Zoom Use 0% Tactical HUD 0 Map Filters NONE Filters NONE Steam 1 RUN: 771f9b4d-4d1b-4192-b8e7-8a14ceb94024